[Event "*** Titled Tuesday Blitz"]
[Site "Chess.com"]
[Date "2020.05.12"]
[Round "7"]
[White "WhiteCapital80"]
[Black "NikolaGry"]
[Result "0-1"]
[WhiteElo "2452"]
[BlackElo "2634"]
[TimeControl "180+1"]
[EndTime "11:14:52 PDT"]
[Termination "NikolaGry won by resignation"]

1. e4 {[%clk 0:03:00.9]} 1... e5 {[%clk 0:02:59.5]} 2. Nf3 {[%clk 0:03:00.8]}
2... d6 {[%clk 0:02:59.7]} 3. d4 {[%clk 0:03:00.7]} 3... exd4 {[%clk 0:02:59.9]}
4. Nxd4 {[%clk 0:03:01]} 4... Nf6 {[%clk 0:03:00.1]} 5. Nc3 {[%clk 0:03:01]}
5... g6 {[%clk 0:03:00.3]} 6. Bc4 {[%clk 0:03:00.8]} 6... Bg7 {[%clk 0:03:00.2]}
7. O-O {[%clk 0:03:00.9]} 7... O-O {[%clk 0:02:59.7]} 8. a4 {[%clk 0:03:00.6]}
8... Nc6 {[%clk 0:02:58.7]} 9. Nxc6 {[%clk 0:02:58.9]} 9... bxc6 {[%clk
0:02:58.3]} 10. Bg5 {[%clk 0:02:57.3]} 10... h6 {[%clk 0:02:51.7]} 11. Bh4
{[%clk 0:02:56.5]} 11... Qe8 {[%clk 0:02:43.8]} 12. f3 {[%clk 0:02:52.6]} 12...
Be6 {[%clk 0:02:40]} 13. Qd3 {[%clk 0:02:46.9]} 13... Nd7 {[%clk 0:02:35.2]} 14.
Bxe6 {[%clk 0:02:46.5]} 14... Qxe6 {[%clk 0:02:33.6]} 15. Rab1 {[%clk
0:02:39.6]} 15... a5 {[%clk 0:02:26.3]} 16. Ne2 {[%clk 0:02:35.6]} 16... Nc5
{[%clk 0:02:23.4]} 17. Qa3 {[%clk 0:02:30.1]} 17... Qc4 {[%clk 0:02:20.6]} 18.
Nc3 {[%clk 0:02:29.6]} 18... Rab8 {[%clk 0:02:04.3]} 19. Bf2 {[%clk 0:02:24.8]}
19... Rb4 {[%clk 0:01:30.9]} 20. Nd1 {[%clk 0:01:44.5]} 20... Qxc2 {[%clk
0:01:27.6]} 21. Ne3 {[%clk 0:01:39.8]} 21... Qxa4 {[%clk 0:01:25.7]} 22. Qxa4
{[%clk 0:01:33.4]} 22... Nxa4 {[%clk 0:01:25.1]} 23. b3 {[%clk 0:01:30]} 23...
Nc3 {[%clk 0:01:22.7]} 24. Rbe1 {[%clk 0:01:26.4]} 24... Rxb3 {[%clk 0:01:21.8]}
25. Nc4 {[%clk 0:01:24]} 25... a4 {[%clk 0:01:20.6]} 26. Kh1 {[%clk 0:01:22.6]}
26... a3 {[%clk 0:01:20.3]} 27. Na5 {[%clk 0:01:13]} 27... Rb5 {[%clk
0:01:12.1]} 28. Nxc6 {[%clk 0:01:11]} 28... a2 {[%clk 0:01:04.1]} 29. Nd4 {[%clk
0:01:08.4]} 29... Rb1 {[%clk 0:01:02.1]} 30. Nc2 {[%clk 0:01:05.5]} 30... Rfb8
{[%clk 0:01:00.2]} 0-1

[Event "*** Titled Tuesday Blitz"]
[Site "Chess.com"]
[Date "2020.05.12"]
[Round "7"]
[White "GothamChess"]
[Black "relaxx87"]
[Result "1-0"]
[WhiteElo "2607"]
[BlackElo "2669"]
[TimeControl "180+1"]
[EndTime "11:14:53 PDT"]
[Termination "GothamChess won by resignation"]

1. e4 {[%clk 0:03:00.9]} 1... c5 {[%clk 0:02:58.5]} 2. a3 {[%clk 0:03:00.1]}
2... Nc6 {[%clk 0:02:46.6]} 3. b4 {[%clk 0:03:00.1]} 3... cxb4 {[%clk
0:02:46.1]} 4. axb4 {[%clk 0:03:01]} 4... Nxb4 {[%clk 0:02:46]} 5. c3 {[%clk
0:03:01.4]} 5... Nc6 {[%clk 0:02:45.8]} 6. d4 {[%clk 0:03:02.1]} 6... d5 {[%clk
0:02:44.3]} 7. exd5 {[%clk 0:03:02.3]} 7... Qxd5 {[%clk 0:02:44.4]} 8. Na3
{[%clk 0:03:02.5]} 8... Nf6 {[%clk 0:02:43.4]} 9. Nb5 {[%clk 0:03:02.6]} 9...
Qd8 {[%clk 0:02:36.2]} 10. d5 {[%clk 0:03:02.7]} 10... Ne5 {[%clk 0:02:14.3]}
11. Bf4 {[%clk 0:03:01]} 11... Nfd7 {[%clk 0:02:13.1]} 12. Qd4 {[%clk
0:02:54.9]} 12... f6 {[%clk 0:02:07.7]} 13. Nf3 {[%clk 0:02:54.2]} 13... e6
{[%clk 0:01:17.4]} 14. dxe6 {[%clk 0:02:20.6]} 14... Nc5 {[%clk 0:01:15.5]} 15.
Nxe5 {[%clk 0:02:00.8]} 15... fxe5 {[%clk 0:01:04.4]} 16. Qxd8+ {[%clk
0:01:49.2]} 16... Kxd8 {[%clk 0:01:05.3]} 17. Bg5+ {[%clk 0:01:48.7]} 17... Be7
{[%clk 0:01:01.1]} 18. O-O-O+ {[%clk 0:01:45.4]} 18... Ke8 {[%clk 0:00:58.7]}
19. Nc7+ {[%clk 0:01:37.8]} 19... Kf8 {[%clk 0:00:58.2]} 20. Bxe7+ {[%clk
0:01:30]} 20... Kxe7 {[%clk 0:00:59.1]} 21. Nxa8 {[%clk 0:01:29.6]} 21... Nxe6
{[%clk 0:00:57.4]} 22. Bc4 {[%clk 0:01:29.3]} 22... Bd7 {[%clk 0:00:34.3]} 23.
Bxe6 {[%clk 0:01:23.5]} 23... Bxe6 {[%clk 0:00:34.2]} 24. Nc7 {[%clk 0:01:23.3]}
24... Bc4 {[%clk 0:00:34.5]} 25. Nd5+ {[%clk 0:01:22.4]} 25... Ke6 {[%clk
0:00:34.4]} 26. Ne3 {[%clk 0:01:22.4]} 26... Bb3 {[%clk 0:00:34.2]} 27. Rd2
{[%clk 0:01:19.9]} 27... Rc8 {[%clk 0:00:35.1]} 28. Kb2 {[%clk 0:01:20.2]} 28...
Ba4 {[%clk 0:00:34.2]} 29. Re1 {[%clk 0:01:19.8]} 29... h5 {[%clk 0:00:32.8]}
30. f4 {[%clk 0:01:17.3]} 30... exf4 {[%clk 0:00:28.8]} 31. Nd5+ {[%clk
0:01:17.4]} 31... Kd6 {[%clk 0:00:28.7]} 32. Ne7+ {[%clk 0:01:17.3]} 1-0

[Event "*** Titled Tuesday Blitz"]
[Site "Chess.com"]
[Date "2020.05.12"]
[Round "7"]
[White "RubensCezila"]
[Black "nitpicker"]
[Result "1/2-1/2"]
[WhiteElo "2446"]
[BlackElo "2276"]
[TimeControl "180+1"]
[EndTime "11:14:53 PDT"]
[Termination "Game drawn by agreement"]

1. c4 {[%clk 0:03:00.9]} 1... e5 {[%clk 0:02:58.9]} 2. Nc3 {[%clk 0:03:00.9]}
2... Nf6 {[%clk 0:02:58.2]} 3. g3 {[%clk 0:02:58.8]} 3... d5 {[%clk 0:02:54.7]}
4. cxd5 {[%clk 0:02:59.7]} 4... Nxd5 {[%clk 0:02:54.8]} 5. Bg2 {[%clk
0:02:59.9]} 5... Nb6 {[%clk 0:02:54.6]} 6. Nf3 {[%clk 0:02:59.5]} 6... Nc6
{[%clk 0:02:54.2]} 7. O-O {[%clk 0:02:59.5]} 7... Be7 {[%clk 0:02:52.8]} 8. d3
{[%clk 0:02:58.5]} 8... O-O {[%clk 0:02:50.9]} 9. Be3 {[%clk 0:02:58.8]} 9... f5
{[%clk 0:02:39.8]} 10. Rc1 {[%clk 0:02:57.2]} 10... Be6 {[%clk 0:02:35.7]} 11.
a3 {[%clk 0:02:50.3]} 11... Bf6 {[%clk 0:02:18.8]} 12. b4 {[%clk 0:02:43.1]}
12... a6 {[%clk 0:02:14.3]} 13. b5 {[%clk 0:02:29.1]} 13... axb5 {[%clk
0:02:12.6]} 14. Nxb5 {[%clk 0:02:30]} 14... Nd5 {[%clk 0:02:07.4]} 15. Bc5
{[%clk 0:02:26.9]} 15... Rf7 {[%clk 0:02:04.8]} 16. e4 {[%clk 0:02:26]} 16...
Nde7 {[%clk 0:01:51.7]} 17. d4 {[%clk 0:02:16.4]} 17... fxe4 {[%clk 0:01:45.5]}
18. Nxe5 {[%clk 0:02:14.1]} 18... Nxe5 {[%clk 0:01:40.8]} 19. dxe5 {[%clk
0:02:15]} 19... Bxe5 {[%clk 0:01:37.5]} 20. Bxe4 {[%clk 0:02:10.6]} 20... Qxd1
{[%clk 0:01:30.3]} 21. Rfxd1 {[%clk 0:02:07.8]} 21... c6 {[%clk 0:01:21.1]} 22.
Nd6 {[%clk 0:01:45]} 22... Bxd6 {[%clk 0:01:20.4]} 23. Rxd6 {[%clk 0:01:44.7]}
23... Bd5 {[%clk 0:01:14.3]} 24. Bb1 {[%clk 0:01:25.3]} 24... Nf5 {[%clk
0:01:12]} 25. Bxf5 {[%clk 0:01:16.7]} 25... Rxf5 {[%clk 0:01:09.5]} 26. Rd7
{[%clk 0:01:14.2]} 26... Rf7 {[%clk 0:01:07.5]} 27. Rxf7 {[%clk 0:01:13.3]}
27... Kxf7 {[%clk 0:01:06.5]} 28. Rb1 {[%clk 0:01:12.5]} 28... b5 {[%clk
0:01:03.6]} 29. Re1 {[%clk 0:01:11.2]} 29... Re8 {[%clk 0:01:02.3]} 30. Rxe8
{[%clk 0:01:10.2]} 30... Kxe8 {[%clk 0:01:01.7]} 31. f4 {[%clk 0:01:06.3]} 31...
h5 {[%clk 0:00:58.3]} 32. Kf2 {[%clk 0:01:05.4]} 32... Kd7 {[%clk 0:00:56.6]}
1/2-1/2

[Event "*** Titled Tuesday Blitz"]
[Site "Chess.com"]
[Date "2020.05.12"]
[Round "7"]
[White "umngqusho"]
[Black "MYMChessAcademy"]
[Result "1-0"]
[WhiteElo "2454"]
[BlackElo "2228"]
[TimeControl "180+1"]
[EndTime "11:14:54 PDT"]
[Termination "umngqusho won on time"]

1. e4 {[%clk 0:03:00.9]} 1... c5 {[%clk 0:02:58.2]} 2. Nf3 {[%clk 0:02:59.4]}
2... d6 {[%clk 0:02:57.9]} 3. d4 {[%clk 0:02:59.1]} 3... cxd4 {[%clk 0:02:58.8]}
4. Nxd4 {[%clk 0:02:57.6]} 4... a6 {[%clk 0:02:59.7]} 5. Nc3 {[%clk 0:02:56.7]}
5... e6 {[%clk 0:03:00.6]} 6. Bc4 {[%clk 0:02:55.9]} 6... b5 {[%clk 0:03:01.1]}
7. Bb3 {[%clk 0:02:55.8]} 7... Bb7 {[%clk 0:03:01.7]} 8. O-O {[%clk 0:02:54.6]}
8... Nd7 {[%clk 0:03:02.3]} 9. f4 {[%clk 0:02:52.6]} 9... Nc5 {[%clk 0:03:02.5]}
10. f5 {[%clk 0:02:50.7]} 10... e5 {[%clk 0:02:52.5]} 11. Ne6 {[%clk 0:02:40]}
11... fxe6 {[%clk 0:02:05.6]} 12. Qh5+ {[%clk 0:02:37]} 12... Kd7 {[%clk
0:02:01]} 13. fxe6+ {[%clk 0:02:00]} 13... Kc7 {[%clk 0:01:54.6]} 14. Nd5+
{[%clk 0:01:53.3]} 14... Kb8 {[%clk 0:01:50.4]} 15. Bg5 {[%clk 0:01:44.6]} 15...
Ne7 {[%clk 0:01:16.3]} 16. Rxf8 {[%clk 0:01:36]} 16... Rxf8 {[%clk 0:00:16.3]}
17. Bxe7 {[%clk 0:01:34.9]} 17... Qe8 {[%clk 0:00:08.9]} 18. Bxd6+ {[%clk
0:01:33.9]} 18... Kc8 {[%clk 0:00:09.2]} 19. Nb6+ {[%clk 0:01:24.5]} 19... Kd8
{[%clk 0:00:07.6]} 20. e7+ {[%clk 0:01:24.5]} 20... Qxe7 {[%clk 0:00:02.1]} 21.
Bxe7+ {[%clk 0:01:23.9]} 21... Kxe7 {[%clk 0:00:02.6]} 22. Qxe5+ {[%clk
0:01:23.3]} 1-0

[Event "*** Titled Tuesday Blitz"]
[Site "Chess.com"]
[Date "2020.05.12"]
[Round "7"]
[White "BocharovD"]
[Black "Riptide27"]
[Result "1-0"]
[WhiteElo "2844"]
[BlackElo "2585"]
[TimeControl "180+1"]
[EndTime "11:15:00 PDT"]
[Termination "BocharovD won by resignation"]

1. c4 {[%clk 0:03:00.9]} 1... Nf6 {[%clk 0:02:58.9]} 2. g3 {[%clk 0:03:00.5]}
2... g6 {[%clk 0:02:57.5]} 3. Bg2 {[%clk 0:03:00.8]} 3... Bg7 {[%clk 0:02:58.4]}
4. Nc3 {[%clk 0:03:01.3]} 4... O-O {[%clk 0:02:59.3]} 5. d4 {[%clk 0:03:01.9]}
5... d6 {[%clk 0:02:57.5]} 6. Nf3 {[%clk 0:03:02.2]} 6... Nbd7 {[%clk
0:02:56.8]} 7. O-O {[%clk 0:03:02.6]} 7... e5 {[%clk 0:02:56.7]} 8. e4 {[%clk
0:03:02.7]} 8... exd4 {[%clk 0:02:56.7]} 9. Nxd4 {[%clk 0:03:03.6]} 9... Re8
{[%clk 0:02:57.3]} 10. h3 {[%clk 0:03:03.7]} 10... Nc5 {[%clk 0:02:57.8]} 11.
Re1 {[%clk 0:03:04.1]} 11... Bd7 {[%clk 0:02:52.8]} 12. Bf4 {[%clk 0:03:01.1]}
12... Ne6 {[%clk 0:02:46.7]} 13. Be3 {[%clk 0:03:00.3]} 13... h6 {[%clk
0:02:40.4]} 14. f4 {[%clk 0:02:57.2]} 14... Nxd4 {[%clk 0:02:33.2]} 15. Bxd4
{[%clk 0:02:57.1]} 15... Bc6 {[%clk 0:02:33.4]} 16. Qd3 {[%clk 0:02:56.8]} 16...
Nd7 {[%clk 0:02:28.6]} 17. Bxg7 {[%clk 0:02:55.6]} 17... Kxg7 {[%clk 0:02:29.5]}
18. Rad1 {[%clk 0:02:56.2]} 18... a5 {[%clk 0:02:22]} 19. Re2 {[%clk 0:02:38.9]}
19... Nc5 {[%clk 0:02:17.4]} 20. Qd4+ {[%clk 0:02:38.3]} 20... Kg8 {[%clk
0:02:15.6]} 21. e5 {[%clk 0:02:37.3]} 21... Bxg2 {[%clk 0:02:14.1]} 22. Kxg2
{[%clk 0:02:38.2]} 22... Qd7 {[%clk 0:01:54.7]} 23. Nd5 {[%clk 0:02:37.1]} 23...
Qc6 {[%clk 0:01:51.4]} 24. Kh2 {[%clk 0:02:35.3]} 24... dxe5 {[%clk 0:01:49.7]}
25. fxe5 {[%clk 0:02:35.5]} 25... Nd7 {[%clk 0:01:44.1]} 26. Rf1 {[%clk
0:01:41.8]} 26... Re6 {[%clk 0:01:41.4]} 27. Nf4 {[%clk 0:01:35.1]} 27... Re7
{[%clk 0:01:30.1]} 28. e6 {[%clk 0:01:35.2]} 28... Nf8 {[%clk 0:01:29.3]} 29.
Nd5 {[%clk 0:01:13.7]} 29... Rxe6 {[%clk 0:01:27.7]} 30. Rxe6 {[%clk 0:01:01]}
30... Qxe6 {[%clk 0:01:24.3]} 31. Nf6+ {[%clk 0:01:00.3]} 31... Kh8 {[%clk
0:01:16.2]} 32. Nh5+ {[%clk 0:00:59.8]} 32... f6 {[%clk 0:01:15.8]} 33. Rxf6
{[%clk 0:00:59.2]} 1-0

[Event "*** Titled Tuesday Blitz"]
[Site "Chess.com"]
[Date "2020.05.12"]
[Round "7"]
[White "Munkhzul_Davaakhuu"]
[Black "I_Hit_18K_on_BS"]
[Result "1-0"]
[WhiteElo "1930"]
[BlackElo "2150"]
[TimeControl "180+1"]
[EndTime "11:15:00 PDT"]
[Termination "Munkhzul_Davaakhuu won by checkmate"]

1. e4 {[%clk 0:03:00.9]} 1... c5 {[%clk 0:02:59.2]} 2. Nf3 {[%clk 0:03:01]} 2...
d6 {[%clk 0:02:58.5]} 3. d4 {[%clk 0:03:01.4]} 3... cxd4 {[%clk 0:02:59.4]} 4.
Nxd4 {[%clk 0:03:01.7]} 4... Nf6 {[%clk 0:02:58.4]} 5. Nc3 {[%clk 0:03:01.9]}
5... a6 {[%clk 0:02:57.8]} 6. Nb3 {[%clk 0:03:01.9]} 6... e5 {[%clk 0:02:48]} 7.
Bg5 {[%clk 0:03:01.2]} 7... Be6 {[%clk 0:02:41.1]} 8. Bxf6 {[%clk 0:03:00.5]}
8... gxf6 {[%clk 0:02:39.5]} 9. Bd3 {[%clk 0:02:59.7]} 9... Rg8 {[%clk
0:02:28.1]} 10. Qf3 {[%clk 0:02:54.5]} 10... Nc6 {[%clk 0:02:21.2]} 11. h3
{[%clk 0:02:54.1]} 11... Bxb3 {[%clk 0:02:18]} 12. axb3 {[%clk 0:02:49.3]} 12...
Nd4 {[%clk 0:02:14.4]} 13. Qh5 {[%clk 0:02:48.7]} 13... Rxg2 {[%clk 0:02:04.8]}
14. O-O-O {[%clk 0:02:48.1]} 14... Qa5 {[%clk 0:01:59.4]} 15. Kb1 {[%clk
0:02:47.3]} 15... Rxf2 {[%clk 0:01:49.2]} 16. Rhf1 {[%clk 0:02:46.9]} 16... Rxf1
{[%clk 0:01:48.3]} 17. Rxf1 {[%clk 0:02:46.7]} 17... Be7 {[%clk 0:01:43.9]} 18.
Qxh7 {[%clk 0:02:41.7]} 18... Rc8 {[%clk 0:01:36.8]} 19. Bc4 {[%clk 0:02:37.8]}
19... b5 {[%clk 0:01:33.1]} 20. Qxf7+ {[%clk 0:02:32.8]} 20... Kd8 {[%clk
0:01:16]} 21. Nd5 {[%clk 0:02:30.1]} 21... Nc6 {[%clk 0:01:14.3]} 22. Nxe7
{[%clk 0:02:16]} 22... Nxe7 {[%clk 0:01:12.8]} 23. Be6 {[%clk 0:02:15.7]} 23...
Qd2 {[%clk 0:00:48.6]} 24. Qf8+ {[%clk 0:02:09.4]} 24... Kc7 {[%clk 0:00:47]}
25. Qxe7+ {[%clk 0:02:09.5]} 25... Kb8 {[%clk 0:00:46.5]} 26. Bxc8 {[%clk
0:02:06.5]} 26... Kxc8 {[%clk 0:00:47.4]} 27. Qxf6 {[%clk 0:02:04.9]} 27... Kc7
{[%clk 0:00:46.2]} 28. Qe7+ {[%clk 0:02:04.1]} 28... Kc6 {[%clk 0:00:43.8]} 29.
Qe8+ {[%clk 0:02:03.5]} 29... Kc5 {[%clk 0:00:39.9]} 30. Qc8+ {[%clk 0:01:59.6]}
30... Kd4 {[%clk 0:00:39]} 31. Qc3+ {[%clk 0:01:57.3]} 31... Qxc3 {[%clk
0:00:37.5]} 32. bxc3+ {[%clk 0:01:57.9]} 32... Kxe4 {[%clk 0:00:36.6]} 33. h4
{[%clk 0:01:57.8]} 33... Ke3 {[%clk 0:00:36]} 34. h5 {[%clk 0:01:57.9]} 34...
Ke2 {[%clk 0:00:36.1]} 35. Rf8 {[%clk 0:01:57.9]} 35... e4 {[%clk 0:00:35.6]}
36. h6 {[%clk 0:01:58.2]} 36... Kd2 {[%clk 0:00:35.4]} 37. h7 {[%clk 0:01:58.4]}
37... e3 {[%clk 0:00:35.6]} 38. h8=Q {[%clk 0:01:57.2]} 38... e2 {[%clk
0:00:35.7]} 39. Qd4+ {[%clk 0:01:56.5]} 39... Ke1 {[%clk 0:00:34.9]} 40. Rh8
{[%clk 0:01:49.6]} 40... Kf1 {[%clk 0:00:29.5]} 41. Rh1+ {[%clk 0:01:47.7]}
41... Kg2 {[%clk 0:00:28.7]} 42. Rg1+ {[%clk 0:01:47.5]} 42... Kh2 {[%clk
0:00:27.6]} 43. Qf2+ {[%clk 0:01:46.8]} 43... Kh3 {[%clk 0:00:27]} 44. Qg3#
{[%clk 0:01:46.9]} 1-0

[Event "*** Titled Tuesday Blitz"]
[Site "Chess.com"]
[Date "2020.05.12"]
[Round "7"]
[White "Bulldog167"]
[Black "Niclox"]
[Result "0-1"]
[WhiteElo "2812"]
[BlackElo "2604"]
[TimeControl "180+1"]
[EndTime "11:15:01 PDT"]
[Termination "Niclox won by resignation"]

1. e4 {[%clk 0:02:59.4]} 1... c5 {[%clk 0:03:00]} 2. Nf3 {[%clk 0:02:59.4]} 2...
d6 {[%clk 0:03:00.2]} 3. d4 {[%clk 0:02:59.3]} 3... cxd4 {[%clk 0:03:01.1]} 4.
Nxd4 {[%clk 0:03:00.2]} 4... Nf6 {[%clk 0:03:01.5]} 5. Nc3 {[%clk 0:03:00.1]}
5... g6 {[%clk 0:03:01.8]} 6. Be3 {[%clk 0:02:56.8]} 6... Bg7 {[%clk 0:03:02]}
7. f3 {[%clk 0:02:57.2]} 7... O-O {[%clk 0:03:02.3]} 8. Qd2 {[%clk 0:02:57.2]}
8... Nc6 {[%clk 0:03:03.2]} 9. O-O-O {[%clk 0:02:57.3]} 9... Nxd4 {[%clk
0:03:03.1]} 10. Bxd4 {[%clk 0:02:57.2]} 10... Be6 {[%clk 0:03:03.2]} 11. h4
{[%clk 0:02:48.7]} 11... Qa5 {[%clk 0:03:02.2]} 12. Kb1 {[%clk 0:02:47.1]} 12...
Rfc8 {[%clk 0:03:01.2]} 13. Nd5 {[%clk 0:02:29.3]} 13... Qxd2 {[%clk 0:02:58.6]}
14. Rxd2 {[%clk 0:02:30.2]} 14... Bxd5 {[%clk 0:01:46.5]} 15. exd5 {[%clk
0:02:29.5]} 15... h5 {[%clk 0:01:29.6]} 16. c3 {[%clk 0:02:10.3]} 16... Nd7
{[%clk 0:01:26.4]} 17. Bxg7 {[%clk 0:02:07.4]} 17... Kxg7 {[%clk 0:01:27.3]} 18.
g3 {[%clk 0:02:05]} 18... Ne5 {[%clk 0:01:25.7]} 19. f4 {[%clk 0:02:01.5]} 19...
Nc4 {[%clk 0:01:25.4]} 20. Re2 {[%clk 0:01:57.9]} 20... Kf6 {[%clk 0:01:23]} 21.
Bh3 {[%clk 0:01:53.7]} 21... Rc7 {[%clk 0:01:21.8]} 22. Rf1 {[%clk 0:01:53.5]}
22... Rg8 {[%clk 0:01:11.2]} 23. f5 {[%clk 0:01:52.1]} 23... g5 {[%clk
0:01:10.4]} 24. hxg5+ {[%clk 0:01:41.3]} 24... Rxg5 {[%clk 0:01:11.3]} 25. Rf3
{[%clk 0:01:36]} 25... Ne5 {[%clk 0:01:10.8]} 26. Rfe3 {[%clk 0:01:36.1]} 26...
Rc8 {[%clk 0:01:10.1]} 27. Kc2 {[%clk 0:01:18.3]} 27... Rcg8 {[%clk 0:01:06.5]}
28. Rg2 {[%clk 0:01:18.2]} 28... h4 {[%clk 0:01:02.7]} 29. g4 {[%clk 0:01:09.1]}
29... Nxg4 {[%clk 0:01:02.6]} 0-1

[Event "*** Titled Tuesday Blitz"]
[Site "Chess.com"]
[Date "2020.05.12"]
[Round "7"]
[White "GM-2023"]
[Black "venus02"]
[Result "0-1"]
[WhiteElo "2087"]
[BlackElo "2288"]
[TimeControl "180+1"]
[EndTime "11:15:02 PDT"]
[Termination "venus02 won on time"]

1. e4 {[%clk 0:02:59.6]} 1... c6 {[%clk 0:02:59.5]} 2. d4 {[%clk 0:02:59.2]}
2... d5 {[%clk 0:03:00]} 3. Nc3 {[%clk 0:02:58.8]} 3... dxe4 {[%clk 0:02:59]} 4.
Nxe4 {[%clk 0:02:59.7]} 4... Bf5 {[%clk 0:02:58.6]} 5. Ng3 {[%clk 0:02:58.3]}
5... Bg6 {[%clk 0:02:59.2]} 6. c3 {[%clk 0:02:57.9]} 6... e6 {[%clk 0:02:54]} 7.
h4 {[%clk 0:02:56.7]} 7... h6 {[%clk 0:02:53.8]} 8. N1e2 {[%clk 0:02:55.4]} 8...
Bd6 {[%clk 0:02:52.6]} 9. Nf4 {[%clk 0:02:55.1]} 9... Bxf4 {[%clk 0:02:52.5]}
10. Bxf4 {[%clk 0:02:56]} 10... Nf6 {[%clk 0:02:52.6]} 11. Bd3 {[%clk
0:02:45.3]} 11... Bxd3 {[%clk 0:02:52]} 12. Qxd3 {[%clk 0:02:46.2]} 12... Qd5
{[%clk 0:02:51.8]} 13. f3 {[%clk 0:02:40.4]} 13... Nbd7 {[%clk 0:02:50.8]} 14.
a3 {[%clk 0:02:10.7]} 14... O-O {[%clk 0:02:36.2]} 15. Ne4 {[%clk 0:02:07.4]}
15... Nxe4 {[%clk 0:02:34.9]} 16. fxe4 {[%clk 0:02:08.3]} 16... Qh5 {[%clk
0:02:34.7]} 17. Qh3 {[%clk 0:01:28.9]} 17... Nf6 {[%clk 0:02:26.3]} 18. Rg1
{[%clk 0:01:00.9]} 18... Nxe4 {[%clk 0:02:19.1]} 19. g4 {[%clk 0:00:50.9]} 19...
Qb5 {[%clk 0:02:18.7]} 20. O-O-O {[%clk 0:00:42.4]} 20... Nf2 {[%clk 0:02:13.9]}
21. Qf3 {[%clk 0:00:37]} 21... Nxd1 {[%clk 0:02:12.8]} 22. Rxd1 {[%clk 0:00:36]}
22... Qd5 {[%clk 0:02:11.4]} 23. Qe2 {[%clk 0:00:32]} 23... f6 {[%clk 0:01:53]}
24. Rg1 {[%clk 0:00:14.6]} 24... g5 {[%clk 0:01:49.1]} 25. Qd3 {[%clk
0:00:08.4]} 25... Kg7 {[%clk 0:01:47.3]} 26. Bg3 {[%clk 0:00:04.3]} 26... c5
{[%clk 0:01:41.8]} 27. Rh1 {[%clk 0:00:03.6]} 27... Qxh1+ {[%clk 0:01:40.8]} 0-1

[Event "*** Titled Tuesday Blitz"]
[Site "Chess.com"]
[Date "2020.05.12"]
[Round "7"]
[White "Beca95"]
[Black "DanielRensch"]
[Result "1-0"]
[WhiteElo "2898"]
[BlackElo "2504"]
[TimeControl "180+1"]
[EndTime "11:15:03 PDT"]
[Termination "Beca95 won by resignation"]

1. d4 {[%clk 0:03:00.9]} 1... Nf6 {[%clk 0:02:57.2]} 2. c4 {[%clk 0:03:01]} 2...
e6 {[%clk 0:02:56.5]} 3. Nc3 {[%clk 0:03:00.9]} 3... Bb4 {[%clk 0:02:55.7]} 4.
Nf3 {[%clk 0:03:01]} 4... O-O {[%clk 0:02:55.3]} 5. Bg5 {[%clk 0:02:59.8]} 5...
c5 {[%clk 0:02:54]} 6. d5 {[%clk 0:02:59.9]} 6... d6 {[%clk 0:02:50]} 7. Nd2
{[%clk 0:02:58]} 7... Bxc3 {[%clk 0:02:49.1]} 8. bxc3 {[%clk 0:02:57.5]} 8... e5
{[%clk 0:02:49]} 9. e3 {[%clk 0:02:54.6]} 9... Nbd7 {[%clk 0:02:48.4]} 10. Bd3
{[%clk 0:02:52.1]} 10... Re8 {[%clk 0:02:47.6]} 11. f3 {[%clk 0:02:52.2]} 11...
h6 {[%clk 0:02:41.1]} 12. Bh4 {[%clk 0:02:51.6]} 12... Qa5 {[%clk 0:02:11.2]}
13. Qc2 {[%clk 0:02:48.9]} 13... b5 {[%clk 0:01:24.8]} 14. O-O {[%clk
0:02:44.1]} 14... bxc4 {[%clk 0:01:16.1]} 15. Nxc4 {[%clk 0:02:44.1]} 15... Qc7
{[%clk 0:01:16.1]} 16. e4 {[%clk 0:02:44.4]} 16... Rb8 {[%clk 0:01:07.3]} 17.
Qa4 {[%clk 0:02:35.2]} 17... g5 {[%clk 0:00:56.5]} 18. Bf2 {[%clk 0:02:34.4]}
18... Kg7 {[%clk 0:00:51.7]} 19. Rab1 {[%clk 0:02:32.3]} 19... Nb6 {[%clk
0:00:48.9]} 20. Qa5 {[%clk 0:02:32.5]} 20... Nfd7 {[%clk 0:00:42.4]} 21. Rb3
{[%clk 0:02:24.8]} 21... Rb7 {[%clk 0:00:41.3]} 22. Rfb1 {[%clk 0:02:04.6]}
22... Qb8 {[%clk 0:00:41.3]} 23. Ne3 {[%clk 0:02:00.5]} 23... Nf8 {[%clk
0:00:36.6]} 24. Ba6 {[%clk 0:01:53.6]} 24... Rd7 {[%clk 0:00:31]} 25. Bxc8
{[%clk 0:01:53.2]} 25... Qxc8 {[%clk 0:00:31.9]} 26. Qb5 {[%clk 0:01:50.1]}
26... Ng6 {[%clk 0:00:29.2]} 27. a4 {[%clk 0:01:49.1]} 27... Ne7 {[%clk
0:00:22.5]} 28. a5 {[%clk 0:01:49.3]} 28... Na8 {[%clk 0:00:22.2]} 29. Nc4
{[%clk 0:01:44]} 29... Nc7 {[%clk 0:00:19.2]} 30. Qb7 {[%clk 0:01:44]} 30... Qa8
{[%clk 0:00:17]} 31. Qxa8 {[%clk 0:01:43.7]} 31... Rxa8 {[%clk 0:00:17.9]} 32.
Rb7 {[%clk 0:01:43.4]} 32... Nc8 {[%clk 0:00:18.1]} 33. Rb8 {[%clk 0:01:36.4]}
33... Rxb8 {[%clk 0:00:16.9]} 34. Rxb8 {[%clk 0:01:37.3]} 34... Ne7 {[%clk
0:00:15.8]} 35. Rb7 {[%clk 0:01:37.4]} 1-0